Workbook

Sheet Data Input
B3: CCIM Office Gap Analysis | H3: =NOW() -> 2024-09-29T11:14:21.550
B5: Market Area | E5: Market Area Employment Sector | F5: % Office Using | H5: # Office Employees
B6: Galleria/West Loop, Houston (10-minute drive time) | E6: ='U.S. Office Using Employment'!A326 -> Wholesale trade | F6: ='U.S. Office Using Employment'!F326 -> 0.09348504003 | H6: =F6*'Business Summary'!D60 -> 222.2139402
E7: ='U.S. Office Using Employment'!A389 -> Retail trade | F7: ='U.S. Office Using Employment'!F389 -> 0.03452578508 | H7: =F7*'Business Summary'!D61 -> 398.4275598
B8: Market Area Supply Data | E8: ='U.S. Office Using Employment'!A475 -> Transportation and warehousing | F8: ='U.S. Office Using Employment'!F475 -> 0.1589476915 | H8: =F8*'Business Summary'!D72 -> 779.3205316
B9: Current Total Supply (RSF) | C9: 27667000 | E9: ='U.S. Office Using Employment'!A529 -> Information | F9: ='U.S. Office Using Employment'!F529 -> 0.7901142041 | H9: =F9*'Business Summary'!D73 -> 1894.693862
B10: Current Overall Vacancy Supply (RSF) | C10: 6806000 | E10: ='U.S. Office Using Employment'!A557 -> Finance and insurance | F10: ='U.S. Office Using Employment'!F557 -> 0.9922765897 | H10: =F10*'Business Summary'!D74 -> 3888.731955
B11: New Supply in Construction Pipeline (RSF) | C11: 0 | E11: ='U.S. Office Using Employment'!A599 -> Real estate | F11: ='U.S. Office Using Employment'!F599 -> 0.9518571244 | H11: =F11*'Business Summary'!D78 -> 4270.982917
B12: Stabilized Vacancy Rate % | C12: 0.164 | E12: ='U.S. Office Using Employment'!A625 -> Professional and business services | F12: ='U.S. Office Using Employment'!F625 -> 0.9526827784 | H12: =F12*'Business Summary'!D79 -> 8224.510426
E13: ='U.S. Office Using Employment'!A677 -> Management of companies and enterprises | F13: ='U.S. Office Using Employment'!F677 -> 1.000041513 | H13: =F13*'Business Summary'!D81 -> 14283.59293
B14: Market Area Forecast Data | E14: ='U.S. Office Using Employment'!A681 -> Administrative and support services | F14: ='U.S. Office Using Employment'!F681 -> 0.6024556357 | H14: =F14*'Business Summary'!D82 -> 25994.15331
B15: Forecast Period (Months) | C15: 24 | E15: ='U.S. Office Using Employment'!A728 -> Educational services | F15: ='U.S. Office Using Employment'!F728 -> 0.0624338064 | H15: =F15*'Business Summary'!D83 -> 677.2819318
B16: Economic Base Multiplier | C16: 7.6 | E16: ='U.S. Office Using Employment'!A741 -> Health care and social assistance | F16: ='U.S. Office Using Employment'!F741 -> 0.2343814443 | H16: =F16*'Business Summary'!D84 -> 261.5696919
B17: Forecast Annual Employment Growth Rate | C17: ='Executive Summary'!C16 -> 0.0041 | E17: ='U.S. Office Using Employment'!A845 -> Other services | F17: ='U.S. Office Using Employment'!F845 -> 0.88892827 | H17: =F17*'Business Summary'!D89 -> 22083.64501
B18: Forecast Basic Employment Change | C18: =('Business Summary'!D98*(1+C17)^(C15/12)*(1/C16))-('Business Summary'!D98*(1/C16)) -> 254.7675998 | E18: ='U.S. Office Using Employment'!A897 -> Government | F18: ='U.S. Office Using Employment'!F897 -> 0.3268675929 | H18: =F18*'Business Summary'!D91 -> 6486.360513
B19: Forecast Total Office Using Employment | C19: =F19*((C18*C16))+H19 -> 90200.60547 | E19: Current Total Office Using Employment | F19: =H19/'Business Summary'!D98 -> 0.3796653607 | H19: =SUM(H6:H18) -> 89465.48458

Sheet Stabilized Vacancy
A1: Submarket Name | B1: Year | C1: Vac % | D1: Effective Rent/SF | E1: Effective Rent % Chg
A2: Galleria/West Loop South | B2: 1989 | C2: 0.209 | D2: 10.04
A3: Galleria/West Loop South | B3: 1990 | C3: 0.146 | D3: 10.64 | E3: 0.06
A4: Galleria/West Loop South | B4: 1991 | C4: 0.125 | D4: 11.43 | E4: 0.074
A5: Galleria/West Loop South | B5: 1992 | C5: 0.144 | D5: 11.02 | E5: -0.036
A6: Galleria/West Loop South | B6: 1993 | C6: 0.163 | D6: 10.74 | E6: -0.025
A7: Galleria/West Loop South | B7: 1994 | C7: 0.166 | D7: 10.75 | E7: 0.001
A8: Galleria/West Loop South | B8: 1995 | C8: 0.134 | D8: 10.96 | E8: 0.02
A9: Galleria/West Loop South | B9: 1996 | C9: 0.098 | D9: 11.91 | E9: 0.087
A10: Galleria/West Loop South | B10: 1997 | C10: 0.102 | D10: 14.21 | E10: 0.193
A11: Galleria/West Loop South | B11: 1998 | C11: 0.082 | D11: 15.72 | E11: 0.106
A12: Galleria/West Loop South | B12: 1999 | C12: 0.057 | D12: 15.01 | E12: -0.045
A13: Galleria/West Loop South | B13: 2000 | C13: 0.169 | D13: 15.52 | E13: 0.034
A14: Galleria/West Loop South | B14: 2001 | C14: 0.199 | D14: 15.82 | E14: 0.019
A15: Galleria/West Loop South | B15: 2002 | C15: 0.242 | D15: 14.55 | E15: -0.08
A16: Galleria/West Loop South | B16: 2003 | C16: 0.24 | D16: 13.87 | E16: -0.047
A17: Galleria/West Loop South | B17: 2004 | C17: 0.19 | D17: 13.84 | E17: -0.002
A18: Galleria/West Loop South | B18: 2005 | C18: 0.164 | D18: 14.36 | E18: 0.038
A19: Galleria/West Loop South | B19: 2006 | C19: 0.128 | D19: 15.32 | E19: 0.067
A20: Galleria/West Loop South | B20: 2007 | C20: 0.153 | D20: 16.78 | E20: 0.095
A21: Galleria/West Loop South | B21: 2008 | C21: 0.059 | D21: 18.39 | E21: 0.096
A22: Galleria/West Loop South | B22: 2009 | C22: 0.063 | D22: 18.17 | E22: -0.012
A23: Galleria/West Loop South | B23: 2010 | C23: 0.062 | D23: 17.46 | E23: -0.039
A24: Galleria/West Loop South | B24: 2011 | C24: 0.095 | D24: 17.66 | E24: 0.011
A25: Galleria/West Loop South | B25: 2012 | C25: 0.081 | D25: 18.81 | E25: 0.065
A26: Galleria/West Loop South | B26: 2013 | C26: 0.048 | D26: 19.27 | E26: 0.024
A27: Galleria/West Loop South | B27: 2014 | C27: 0.056 | D27: 19.84 | E27: 0.03
A28: Galleria/West Loop South | B28: 2015 | C28: 0.082 | D28: 20.12 | E28: 0.014
A29: Galleria/West Loop South | B29: 2016 | C29: 0.081 | D29: 20.26 | E29: 0.007
A30: Galleria/West Loop South | B30: 2017 | C30: 0.094 | D30: 20.83 | E30: 0.028
A31: Galleria/West Loop South | B31: 2018 | C31: 0.12 | D31: 21.12 | E31: 0.014
A32: Galleria/West Loop South | B32: 2019 | C32: 0.135 | D32: 21.38 | E32: 0.012
A33: Galleria/West Loop South | B33: 2020 | C33: 0.165 | D33: 21.26 | E33: -0.006
A34: Galleria/West Loop South | B34: 2021 | C34: 0.158 | D34: 21.13 | E34: -0.006
A35: Galleria/West Loop South | B35: 2022 | C35: 0.153 | D35: 21.58 | E35: 0.021
A36: Galleria/West Loop South | B36: 2023 | C36: 0.199 | D36: 21.1 | E36: -0.022
C38: 0.242 | D38: High Range | E38: 11 inflection points over the past 35 years
C39: 0.057 | D39: Low Range
C40: 0.147 | D40: Average
C41: 0.164 | D41: Median

Sheet U.S. Office Using Employment (hidden)
A1: Office Using Employment Estimate (updated April 2019)
A2: Industry | B2: NAICS Code | C2: Total Employment x 1,000 | D2: Office Using? "X"=Yes | E2: # of Office Workers | F2: % of Office Workers
A3: Total nonfarm | C3: 151020
A5: Total private | C5: 128491
A7: Goods-producing | C7: 21070
A9: Mining and logging | C9: 756
A10: Logging | B10: 1133 | C10: 45.7
A11: Mining | B11: 21 | C11: 710.6
A12: Oil and gas extraction | B12: 211 | C12: 155.1
A13: Mining, except oil and gas | B13: 212 | C13: 195.5
A14: Coal mining | B14: 2121 | C14: 52.4
A15: Bituminous coal and lignite surface mining(1) | B15: 212111 | C15: 22.9
A16: Bituminous coal underground mining and anthracite mining(1) | B16: 212112,3 | C16: 29.6
A17: Metal ore mining | B17: 2122 | C17: 41.5
A18: Nonmetallic mineral mining and quarrying | B18: 2123 | C18: 101.7
A19: Stone mining and quarrying(1) | B19: 21231 | C19: 42.6
A20: Crushed and broken limestone mining(1) | B20: 212312 | C20: 22.2
A21: Other stone mining and quarrying(1) | B21: 212311,3,9 | C21: 20.4
A22: Sand, gravel, clay, and refractory mining(1) | B22: 21232 | C22: 46.9
A23: Construction sand and gravel mining(1) | B23: 212321 | C23: 31.1
A24: Other nonmetallic mineral mining(1) | B24: 21239 | C24: 12.3
A25: Support activities for mining | B25: 213 | C25: 360
A26: Support activities for oil and gas operations(1) | B26: 213112 | C26: 280.8
A28: Construction | B28: 23 | C28: 7478
A29: Construction of buildings | B29: 236 | C29: 1650.6
A30: Residential building | B30: 2361 | C30: 829.3
A31: New single-family general contractors | B31: 236115 | C31: 371.3
A32: New multifamily general contractors | B32: 236116 | C32: 35.6
A33: New housing operative builders | B33: 236117 | C33: 41.2
A34: Residential remodelers | B34: 236118 | C34: 381.2
A35: Nonresidential building | B35: 2362 | C35: 821.3
A36: Industrial building | B36: 23621 | C36: 163.8
A37: Commercial building | B37: 23622 | C37: 657.5
A38: Heavy and civil engineering construction | B38: 237 | C38: 1088.1
A39: Utility system construction(1) | B39: 2371 | C39: 568.6
A40: Water and sewer system construction(1) | B40: 23711 | C40: 199
A41: Oil and gas pipeline construction(1) | B41: 23712 | C41: 179.3
A42: Power and communication system construction(1) | B42: 23713 | C42: 189.8
A43: Land subdivision(1) | B43: 2372 | C43: 39
A44: Highway, street, and bridge construction(1) | B44: 2373 | C44: 360.2
A45: Other heavy construction(1) | B45: 2379 | C45: 119.6
A46: Specialty trade contractors | B46: 238 | C46: 4739.6
A47: Residential specialty trade contractors | B47: part 238 | C47: 2066
A48: Nonresidential specialty trade contractors | B48: part 238 | C48: 2673.6
A49: Building foundation and exterior contractors(1) | B49: 2381 | C49: 921.1
A50: Poured concrete structure contractors | B50: 23811 | C50: 230.9
A51: Steel and precast concrete contractors | B51: 23812 | C51: 86.4
A52: Framing contractors | B52: 23813 | C52: 83.8
A53: Masonry contractors | B53: 23814 | C53: 145.3
A54: Glass and glazing contractors | B54: 23815 | C54: 69.9
A55: Roofing contractors | B55: 23816 | C55: 220.3
A56: Siding contractors | B56: 23817 | C56: 39.2
A57: Other building exterior contractors | B57: 23819 | C57: 47.6
A58: Building equipment contractors(1) | B58: 2382 | C58: 2254.2
A59: Electrical contractors | B59: 23821 | C59: 954.8
A60: Plumbing and HVAC contractors | B60: 23822 | C60: 1150.1
A61: Other building equipment contractors | B61: 23829 | C61: 148.7
A62: Building finishing contractors(1) | B62: 2383 | C62: 851
A63: Drywall and insulation contractors | B63: 23831 | C63: 260.9
A64: Painting and wall covering contractors | B64: 23832 | C64: 215.8
A65: Flooring contractors | B65: 23833 | C65: 82.9
A66: Tile and terrazzo contractors | B66: 23834 | C66: 59.4
A67: Finish carpentry contractors | B67: 23835 | C67: 153.8
A68: Other building finishing contractors | B68: 23839 | C68: 79.5
A69: Other specialty trade contractors(1) | B69: 2389 | C69: 711.4
A70: Site preparation contractors | B70: 23891 | C70: 353.6
A71: All other specialty trade contractors | B71: 23899 | C71: 356.9
A73: Manufacturing | C73: 12836
A75: Durable goods | C75: 8056
A76: Wood products | B76: 321 | C76: 410.2
A77: Sawmills and wood preservation(1) | B77: 3211 | C77: 93.7
A78: Plywood and engineered wood products(1) | B78: 3212 | C78: 80.8
A79: Other wood products(1) | B79: 3219 | C79: 235.6
A80: Millwork(1) | B80: 32191 | C80: 106.1
A81: Wood windows and doors(1) | B81: 321911 | C81: 52.1
A82: Cut stock, resawing lumber, planing, and other millwork, including flooring(1) | B82: 321912,8 | C82: 53.7
A83: Wood containers and pallets(1) | B83: 32192 | C83: 59.6
A84: All other wood products(1) | B84: 32199 | C84: 70.3
A85: Nonmetallic mineral products | B85: 327 | C85: 414.5
A86: Clay products and refractories(1) | B86: 3271 | C86: 39.6
A87: Glass and glass products(1) | B87: 3272 | C87: 85.5
A88: Flat glass and other pressed and blown glass and glassware(1) | B88: 327211,2 | C88: 24.6
A89: Glass containers and products made of purchased glass(1) | B89: 327213,5 | C89: 61
A90: Cement and concrete products(1) | B90: 3273 | C90: 191.8
A91: Ready-mix concrete(1) | B91: 32732 | C91: 98.1
A92: Other cement and concrete products(1) | B92: 32731,3,9 | C92: 94.1
A93: Lime, gypsum, and other nonmetallic mineral products(1) | B93: 3274,9 | C93: 97.6
A94: Primary metals | B94: 331 | C94: 381.7
A95: Iron and steel mills and ferroalloy production(1) | B95: 3311 | C95: 85.2
A96: Steel products from purchased steel(1) | B96: 3312 | C96: 58.8
A97: Alumina and aluminum production(1) | B97: 3313 | C97: 57.4
A98: Other nonferrous metal production(1) | B98: 3314 | C98: 60.4
A99: Foundries(1) | B99: 3315 | C99: 120.1
A100: Ferrous metal foundries(1) | B100: 33151 | C100: 63.6
A101: Iron foundries(1) | B101: 331511 | C101: 35.5
A102: Nonferrous metal foundries(1) | B102: 33152 | C102: 56.5
A103: Fabricated metal products | B103: 332 | C103: 1483.6
A104: Forging and stamping(1) | B104: 3321 | C104: 102.3
A105: Cutlery and hand tools(1) | B105: 3322 | C105: 35.6
A106: Architectural and structural metals(1) | B106: 3323 | C106: 391.6
A107: Plate work and fabricated structural products(1) | B107: 33231 | C107: 170.4
A108: Fabricated structural metal products(1) | B108: 332312 | C108: 88.2
A109: Prefabricated metal buildings, components, and plate work(1) | B109: 332311,3 | C109: 82.2
A110: Ornamental and architectural metal products(1) | B110: 33232 | C110: 221.2
A111: Metal windows and doors(1) | B111: 332321 | C111: 67
A112: Sheet metal work(1) | B112: 332322 | C112: 112.3
A113: Ornamental and architectural metal work(1) | B113: 332323 | C113: 42
A114: Boilers, tanks, and shipping containers(1) | B114: 3324 | C114: 93.7
A115: Hardware, spring, and wire products(1) | B115: 3325,6 | C115: 71.4
A116: Machine shops and threaded products(1) | B116: 3327 | C116: 363.3
A117: Machine shops(1) | B117: 33271 | C117: 286.9
A118: Turned products and screws, nuts, and bolts(1) | B118: 33272 | C118: 76.9
A119: Precision turned products(1) | B119: 332721 | C119: 38.9
A120: Bolts, nuts, screws, rivets, and washers(1) | B120: 332722 | C120: 37.8
A121: Coating, engraving, and heat treating metals(1) | B121: 3328 | C121: 143.1
A122: Metal heat treating and coating and nonprecious engraving(1) | B122: 332811,2 | C122: 82.3
A123: Electroplating, anodizing, and coloring metals(1) | B123: 332813 | C123: 60.9
A124: Other fabricated metal products(1) | B124: 3329 | C124: 282.6
A125: Metal valves(1) | B125: 33291 | C125: 91.4
A126: Fluid power valves and hose fittings(1) | B126: 332912 | C126: 37.7
A127: All other metal valves(1) | B127: 332911,3,9 | C127: 53.7
A128: All other fabricated metal products(1) | B128: 33299 | C128: 191.1
A129: Small arms, ammunition, and other ordnance and accessories(1) | B129: 332992,3,4 | C129: 46
A130: Miscellaneous fabricated metal products and ball and roller bearings(1) | B130: 332991,6,9 | C130: 144.7
A131: Machinery | B131: 333 | C131: 1139.6
A132: Agricultural, construction, and mining machinery(1) | B132: 3331 | C132: 226.6
A133: Agricultural implements(1) | B133: 33311 | C133: 77
A134: Farm machinery and equipment(1) | B134: 333111 | C134: 60.1
A135: Construction machinery(1) | B135: 33312 | C135: 71.8
A136: Mining and oil and gas field machinery(1) | B136: 33313 | C136: 77.4
A137: Industrial machinery(1) | B137: 3332 | C137: 119.7
A138: Commercial and service industry machinery(1) | B138: 3333 | C138: 96.7
A139: HVAC and commercial refrigeration equipment(1) | B139: 3334 | C139: 135.7
A140: AC, refrigeration, and forced air heating(1) | B140: 333415 | C140: 90.7
A141: Metalworking machinery(1) | B141: 3335 | C141: 179.6
A142: Industrial molds(1) | B142: 333511 | C142: 37
A143: Special tools, dies, jigs, and fixtures(1) | B143: 333514 | C143: 62.8
A144: Machine tool manufacturing(1) | B144: 333517 | C144: 40.7
A145: Miscellaneous metalworking machinery(1) | B145: 333515,9 | C145: 38.7
A146: Turbine and power transmission equipment(1) | B146: 3336 | C146: 101.4
A147: Other general purpose machinery(1) | B147: 3339 | C147: 279.5
A148: Pumps and compressors(1) | B148: 33391 | C148: 50.4
A149: Material handling equipment(1) | B149: 33392 | C149: 87.5
A150: All other general purpose machinery(1) | B150: 33399 | C150: 141.7
A151: Computer and electronic products | B151: 334 | C151: 1075.9
A152: Computer and peripheral equipment | B152: 3341 | C152: 159.5
A153: Electronic computers(1) | B153: 334111 | C153: 110.8
A154: Computer storage devices, terminals, and other peripheral equipment(1) | B154: 334112,8 | C154: 48.9
A155: Communications equipment | B155: 3342 | C155: 86.5
A156: Telephone apparatus(1) | B156: 33421 | C156: 16.3
A157: Broadcast and wireless communications equipment(1) | B157: 33422 | C157: 51.4
A158: Semiconductors and electronic components | B158: 3344 | C158: 375.4
A159: Bare printed circuit boards(1) | B159: 334412 | C159: 26.8
A160: Semiconductors and related devices(1) | B160: 334413 | C160: 183.7
A161: Printed circuit assemblies(1) | B161: 334418 | C161: 62.5
A162: Electronic connectors and misc. electronic components(1) | B162: 334416,7,9 | C162: 102.4
A163: Electronic instruments | B163: 3345 | C163: 421
A164: Electromedical apparatus(1) | B164: 334510 | C164: 71.5
A165: Search, detection, and navigation instruments(1) | B165: 334511 | C165: 130.6
A166: Industrial process variable instruments(1) | B166: 334513 | C166: 63.8
A167: Electricity and signal testing instruments(1) | B167: 334515 | C167: 38
A168: Miscellaneous electronic instruments(1) | B168: 334512,4,6-9 | C168: 117.1
A169: Miscellaneous computer and electronic products | B169: 3343,6 | C169: 33.4
A170: Electrical equipment and appliances | B170: 335 | C170: 402.8
A171: Electric lighting equipment(1) | B171: 3351 | C171: 50.5
A172: Household appliances(1) | B172: 3352 | C172: 60.5
A173: Electrical equipment(1) | B173: 3353 | C173: 146
A174: Electric power and specialty transformers(1) | B174: 335311 | C174: 29.2
A175: Motors and generators, switchgears and switchboard apparatus, and relay and industrial controls(1) | B175: 335312,3,4 | C175: 117
A176: Other electrical equipment and components(1) | B176: 3359 | C176: 145.6
A177: Batteries(1) | B177: 33591 | C177: 35.5
A178: Wiring devices(1) | B178: 33593 | C178: 46.8
A179: All other electrical equipment and components(1) | B179: 33592,9 | C179: 63.3
A180: Transportation equipment | B180: 336 | C180: 1737
A181: Motor vehicles and parts(2) | B181: 3361,2,3 | C181: 997
A182: Motor vehicles(1) | B182: 3361 | C182: 240
A183: Automobiles and light trucks(1) | B183: 33611 | C183: 207.4
A184: Automobiles(1) | B184: 336111 | C184: 137.6
A185: Light trucks and utility vehicles(1) | B185: 336112 | C185: 68.8
A186: Heavy duty trucks(1) | B186: 33612 | C186: 32.8
A187: Motor vehicle bodies and trailers(1) | B187: 3362 | C187: 165.7
A188: Motor vehicle bodies(1) | B188: 336211 | C188: 57.8
A189: Truck trailers, motor homes, travel trailers, and campers(1) | B189: 336212,3,4 | C189: 107.8
A190: Motor vehicle parts(1) | B190: 3363 | C190: 591.7
A191: Motor vehicle gasoline engine and parts(1) | B191: 33631 | C191: 61.8
A192: Motor vehicle electric equipment(1) | B192: 33632 | C192: 60.9
A193: Motor vehicle steering and suspension parts(1) | B193: 33633 | C193: 35
A194: Motor vehicle brake systems(1) | B194: 33634 | C194: 26
A195: Motor vehicle power train components(1) | B195: 33635 | C195: 81.3
A196: Motor vehicle seating and interior trim(1) | B196: 33636 | C196: 74.9
A197: Motor vehicle metal stamping(1) | B197: 33637 | C197: 88.6
A198: All other motor vehicle parts(1) | B198: 33639 | C198: 163.1
A199: Aerospace products and parts(1) | B199: 3364 | C199: 533.8
A200: Aircraft(1) | B200: 336411 | C200: 250.8
A201: Aircraft engines and engine parts(1) | B201: 336412 | C201: 87.5
A202: Other aircraft parts and equipment(1) | B202: 336413 | C202: 114.2
A203: Guided missiles, space vehicles, and parts(1) | B203: 336414,5,9 | C203: 81.8
A204: Ship and boat building(1) | B204: 3366 | C204: 145.9
A205: Ship building and repairing(1) | B205: 336611 | C205: 99.4
A206: Boat building(1) | B206: 336612 | C206: 46.4
... 712 more rows

Sheet Business Summary
A2: Business Summary
A3: 4400 Post Oak Pkwy, Houston, Texas, 77027 2
A4: 4400 Post Oak Pkwy, Houston, Texas, 77027
A5: Drive time: 10 minute radii
A6: Latitude: 29.74778
A7: Longitude: -95.45172
A9: Data for all businesses in area | C9: 10 minutes
A10: Total Businesses: | C10: 21566
A11: Total Employees: | C11: 235643
A12: Total Population: | C12: 178958
A13: Employee/Population Ratio (per 100 Residents) | C13: 132
B15: Businesses | D15: Employees
A16: by SIC Codes | B16: Number | C16: Percent | D16: Number | E16: Percent
A17: Agriculture & Mining | B17: 452 | C17: 0.021 | D17: 10624 | E17: 0.045
A18: Construction | B18: 929 | C18: 0.043 | D18: 9521 | E18: 0.04
A19: Manufacturing | B19: 426 | C19: 0.02 | D19: 9764 | E19: 0.041
A20: Transportation | B20: 426 | C20: 0.02 | D20: 10145 | E20: 0.043
A21: Communication | B21: 156 | C21: 0.007 | D21: 4128 | E21: 0.018
A22: Utility | B22: 97 | C22: 0.004 | D22: 3083 | E22: 0.013
A23: Wholesale Trade | B23: 431 | C23: 0.02 | D23: 5182 | E23: 0.022
A25: Retail Trade Summary | B25: 3196 | C25: 0.148 | D25: 42395 | E25: 0.18
A26: Home Improvement | B26: 104 | C26: 0.005 | D26: 1232 | E26: 0.005
A27: General Merchandise Stores | B27: 95 | C27: 0.004 | D27: 3451 | E27: 0.015
A28: Food Stores | B28: 257 | C28: 0.012 | D28: 4016 | E28: 0.017
A29: Auto Dealers & Gas Stations | B29: 211 | C29: 0.01 | D29: 2374 | E29: 0.01
A30: Apparel & Accessory Stores | B30: 400 | C30: 0.019 | D30: 3805 | E30: 0.016
A31: Furniture & Home Furnishings | B31: 227 | C31: 0.011 | D31: 2298 | E31: 0.01
A32: Eating & Drinking Places | B32: 1119 | C32: 0.052 | D32: 19642 | E32: 0.083
A33: Miscellaneous Retail | B33: 783 | C33: 0.036 | D33: 5578 | E33: 0.024
A35: Finance, Insurance, Real Estate Summary | B35: 3338 | C35: 0.155 | D35: 35269 | E35: 0.15
A36: Banks, Savings & Lending Institutions | B36: 394 | C36: 0.018 | D36: 4615 | E36: 0.02
A37: Securities Brokers | B37: 784 | C37: 0.036 | D37: 7529 | E37: 0.032
A38: Insurance Carriers & Agents | B38: 393 | C38: 0.018 | D38: 5384 | E38: 0.023
A39: Real Estate, Holding, Other Investment Offices | B39: 1766 | C39: 0.082 | D39: 17742 | E39: 0.075
A41: Services Summary | B41: 9033 | C41: 0.419 | D41: 100595 | E41: 0.427
A42: Hotels & Lodging | B42: 136 | C42: 0.006 | D42: 5000 | E42: 0.021
A43: Automotive Services | B43: 255 | C43: 0.012 | D43: 1650 | E43: 0.007
A44: Movies & Amusements | B44: 385 | C44: 0.018 | D44: 3243 | E44: 0.014
A45: Health Services | B45: 1519 | C45: 0.07 | D45: 14674 | E45: 0.062
A46: Legal Services | B46: 1405 | C46: 0.065 | D46: 10239 | E46: 0.043
A47: Education Institutions & Libraries | B47: 234 | C47: 0.011 | D47: 6533 | E47: 0.028
A48: Other Services | B48: 5099 | C48: 0.236 | D48: 59256 | E48: 0.251
A50: Government | B50: 126 | C50: 0.006 | D50: 3626 | E50: 0.015
A52: Unclassified Establishments | B52: 2956 | C52: 0.137 | D52: 1310 | E52: 0.006
A54: Totals | B54: 21566 | C54: 100.0% | D54: 235643 | E54: 100.0%
B56: Businesses | D56: Employees
A57: by NAICS Codes | B57: Number | C57: Percent | D57: Number | E57: Percent
A58: Agriculture, Forestry, Fishing & Hunting | B58: 70 | C58: 0.003 | D58: 237 | E58: 0.001
A59: Mining | B59: 234 | C59: 0.011 | D59: 8032 | E59: 0.034
A60: Utilities | B60: 52 | C60: 0.002 | D60: 2377 | E60: 0.01
A61: Construction | B61: 1043 | C61: 0.048 | D61: 11540 | E61: 0.049
A62: Manufacturing | B62: 450 | C62: 0.021 | D62: 7968 | E62: 0.034
A63: Wholesale Trade | B63: 420 | C63: 0.019 | D63: 5081 | E63: 0.022
A64: Retail Trade | B64: 1973 | C64: 0.091 | D64: 22100 | E64: 0.094
A65: Motor Vehicle & Parts Dealers | B65: 165 | C65: 0.008 | D65: 1998 | E65: 0.008
A66: Furniture & Home Furnishings Stores | B66: 142 | C66: 0.007 | D66: 1543 | E66: 0.007
A67: Electronics & Appliance Stores | B67: 68 | C67: 0.003 | D67: 679 | E67: 0.003
A68: Building Material & Garden Equipment & Supplies Dealers | B68: 104 | C68: 0.005 | D68: 1232 | E68: 0.005
A69: Food & Beverage Stores | B69: 201 | C69: 0.009 | D69: 3600 | E69: 0.015
A70: Health & Personal Care Stores | B70: 190 | C70: 0.009 | D70: 1431 | E70: 0.006
A71: Gasoline Stations & Fuel Dealers | B71: 50 | C71: 0.002 | D71: 397 | E71: 0.002
A72: Clothing, Clothing Accessories, Shoe and Jewelry Stores | B72: 558 | C72: 0.026 | D72: 4903 | E72: 0.021
A73: Sporting Goods, Hobby, Book, & Music Stores | B73: 330 | C73: 0.015 | D73: 2398 | E73: 0.01
A74: General Merchandise Stores | B74: 167 | C74: 0.008 | D74: 3919 | E74: 0.017
A75: Transportation & Warehousing | B75: 317 | C75: 0.015 | D75: 8885 | E75: 0.038
A76: Information | B76: 463 | C76: 0.021 | D76: 9856 | E76: 0.042
A77: Finance & Insurance | B77: 1628 | C77: 0.075 | D77: 18905 | E77: 0.08
A78: Central Bank/Credit Intermediation & Related Activities | B78: 380 | C78: 0.018 | D78: 4487 | E78: 0.019
A79: Securities & Commodity Contracts | B79: 849 | C79: 0.039 | D79: 8633 | E79: 0.037
A80: Funds, Trusts & Other Financial Vehicles | B80: 400 | C80: 0.019 | D80: 5784 | E80: 0.025
A81: Real Estate, Rental & Leasing | B81: 1561 | C81: 0.072 | D81: 14283 | E81: 0.061
A82: Professional, Scientific & Tech Services | B82: 3776 | C82: 0.175 | D82: 43147 | E82: 0.183
A83: Legal Services | B83: 1491 | C83: 0.069 | D83: 10848 | E83: 0.046
A84: Management of Companies & Enterprises | B84: 145 | C84: 0.007 | D84: 1116 | E84: 0.005
A85: Administrative, Support & Waste Management Services | B85: 739 | C85: 0.034 | D85: 7770 | E85: 0.033
A86: Educational Services | B86: 310 | C86: 0.014 | D86: 7127 | E86: 0.03
A87: Health Care & Social Assistance | B87: 1812 | C87: 0.084 | D87: 18519 | E87: 0.079
A88: Arts, Entertainment & Recreation | B88: 332 | C88: 0.015 | D88: 4421 | E88: 0.019
A89: Accommodation & Food Services | B89: 1283 | C89: 0.059 | D89: 24843 | E89: 0.105
A90: Accommodation | B90: 136 | C90: 0.006 | D90: 5000 | E90: 0.021
A91: Food Services & Drinking Places | B91: 1147 | C91: 0.053 | D91: 19844 | E91: 0.084
A92: Other Services (except Public Administration) | B92: 1878 | C92: 0.087 | D92: 14504 | E92: 0.062
A93: Automotive Repair & Maintenance | B93: 175 | C93: 0.008 | D93: 1164 | E93: 0.005
A94: Public Administration | B94: 126 | C94: 0.006 | D94: 3640 | E94: 0.015
A96: Unclassified Establishments | B96: 2951 | C96: 0.137 | D96: 1293 | E96: 0.005
A98: Total | B98: 21566 | C98: 100.0% | D98: 235643 | E98: 100.0%
A100: Source: Copyright 2024 Data Axle, Inc. All rights reserved. Esri Total Population forecasts for 2024.
A102: Date Note: Data on the Business Summary report is calculated using | B102: Esri’s Data allocation method | C102: which uses census block groups to allocate business summary data to custom areas.
A104: ©2024 Esri

Sheet Executive Summary
A2: Executive Summary
A3: 4400 Post Oak Pkwy, Houston, Texas, 77027
A4: Drive time: 10 minute radii
A5: Latitude: 29.74778
A6: Longitude: -95.45180
C8: 10 minutes
B9: Population
B10: 2010 Population | C10: 236352
B11: 2020 Population | C11: 267972
B12: 2024 Population | C12: 283561
B13: 2029 Population | C13: 289473
B14: 2010-2020 Annual Rate | C14: 0.0126
B15: 2020-2024 Annual Rate | C15: 0.0134
B16: 2024-2029 Annual Rate | C16: 0.0041
B18: 2020 Male Population | C18: 0.5
B19: 2020 Female Population | C19: 0.5
B20: 2020 Median Age | C20: 35.9
B22: 2024 Male Population | C22: 0.506
B23: 2024 Female Population | C23: 0.494
B24: 2024 Median Age | C24: 36.5
B26: In the identified area, the current year population is 283,561. In 2020, the Census count in the area was 267,972. The rate of change since 2020 was 1.34% annually. The five-year projection for the population in the area is 289,473 representing a change of 0.41% annually from 2024 to 2029. Currently, the population is 50.6% male and 49.4% female.
B28: Median Age
B29: The median age in this area is 36.5, compared to U.S. median age of 39.3.
B31: Race and Ethnicity
B32: 2024 White Alone | C32: 0.518
B33: 2024 Black Alone | C33: 0.084
B34: 2024 American Indian/Alaska Native Alone | C34: 0.01
B35: 2024 Asian Alone | C35: 0.111
B36: 2024 Pacific Islander Alone | C36: 0
B37: 2024 Other Race | C37: 0.128
B38: 2024 Two or More Races | C38: 0.149
B39: 2024 Hispanic Origin (Any Race) | C39: 0.303
B41: Persons of Hispanic origin represent 30.3% of the population in the identified area compared to 19.6% of the U.S. population. Persons of Hispanic Origin may be of any race. The Diversity Index, which measures the probability that two people from the same area will be from different race/ethnic groups, is 81.1 in the identified area, compared to 72.5 for the U.S. as a whole.
B43: Households
B44: 2024 Wealth Index | C44: 127
B45: 2010 Households | C45: 109287
B46: 2020 Households | C46: 127038
B47: 2024 Households | C47: 136038
B48: 2029 Households | C48: 141312
B49: 2010-2020 Annual Rate | C49: 0.0152
B50: 2020-2024 Annual Rate | C50: 0.0162
B51: 2024-2029 Annual Rate | C51: 0.0076
B52: 2024 Average Household Size | C52: 2.07
B54: The household count in this area has changed from 127,038 in 2020 to 136,038 in the current year, a change of 1.62% annually. The five-year projection of households is 141,312, a change of 0.76% annually from the current year total. Average household size is currently 2.07, compared to 2.10 in the year 2020. The number of families in the current year is 64,882 in the specified area.
B56: Mortgage Income
B57: 2024 Percent of Income for Mortgage | C57: 0.384
B59: Median Household Income
B60: 2024 Median Household Income | C60: 101853
B61: 2029 Median Household Income | C61: 113747
B62: 2024-2029 Annual Rate | C62: 0.0223
B64: Average Household Income
B65: 2024 Average Household Income | C65: 161202
B66: 2029 Average Household Income | C66: 180410
B67: 2024-2029 Annual Rate | C67: 0.0228
B69: Per Capita Income
B70: 2024 Per Capita Income | C70: 76921
B71: 2029 Per Capita Income | C71: 87575
B72: 2024-2029 Annual Rate | C72: 0.0263
B74: GINI Index
B75: 2024 Gini Index | C75: 38.8
B77: Households by Income
B78: Current median household income is $101,853 in the area, compared to $79,068 for all U.S. households. Median household income is projected to be $113,747 in five years, compared to $91,442 all U.S. households. Current average household income is $161,202 in this area, compared to $113,185 for all U.S. households. Average household income is projected to be $180,410 in five years, compared to $130,581 for all U.S. households. Current per capita income is $76,921 in the area, compared to the U.S. per capita income of $43,829. The per capita income is projected to be $87,575 in five years, compared to $51,203 for all U.S. households.
B80: Housing
B81: 2024 Housing Affordability Index | C81: 58
B82: 2010 Total Housing Units | C82: 124939
B83: 2010 Owner Occupied Housing Units | C83: 47902
B84: 2010 Renter Occupied Housing Units | C84: 61385
B85: 2010 Vacant Housing Units | C85: 15652
B86: 2020 Total Housing Units | C86: 143850
B87: 2020 Owner Occupied Housing Units | C87: 51297
B88: 2020 Renter Occupied Housing Units | C88: 75741
B89: 2020 Vacant Housing Units | C89: 16614
B90: 2024 Total Housing Units | C90: 153977
B91: 2024 Owner Occupied Housing Units | C91: 54097
B92: 2024 Renter Occupied Housing Units | C92: 81941
B93: 2024 Vacant Housing Units | C93: 17939
B94: 2029 Total Housing Units | C94: 159681
B95: 2029 Owner Occupied Housing Units | C95: 57435
B96: 2029 Renter Occupied Housing Units | C96: 83877
B97: 2029 Vacant Housing Units | C97: 18369
B99: Socioeconomic Status Index
B100: 2024 Socioeconomic Status Index | C100: 50.9
B102: Currently, 35.1% of the 153,977 housing units in the area are owner occupied; 53.2%, renter occupied; and 11.7% are vacant. Currently, in the U.S., 57.9% of the housing units in the area are owner occupied; 32.1% are renter occupied; and 10.0% are vacant. In 2020, there were 143,850 housing units in the area and 11.5% vacant housing units. The annual rate of change in housing units since 2020 is 1.61%. Median home value in the area is $624,462, compared to a median home value of $355,577 for the U.S. In five years, median value is projected to change by 2.47% annually to $705,640.
A104: Data Note: Income is expressed in current dollars. Housing Affordability Index and Percent of Income for Mortgage calculations are only available for areas with 50 or more owner-occupied housing units. The Gini index measures the extent to which the distribution of income or consumption among individuals or households within an economy deviates from a perfectly equal distribution. A Gini index of 0 represents perfect equality, while an index of 100 implies perfect inequality. Source: U.S. Census Bureau. Esri forecasts for 2024 and 2029. Esri converted Census 2010 into 2020 geography and Census 2020 data.
A106: ©2024 Esri

Sheet Gap Analysis
B1: CCIM Office Gap Analysis
B2: ='Data Input'!B6:C6 -> Galleria/West Loop, Houston (10-minute drive time)
B3: Forecast Period: | C3: ='Data Input'!C15 -> 24 | D3: Months
B5: Current Market Conditions | E5: ='Data Input'!H3 -> 2024-09-29T11:14:21.550
B6: Current Office Employment | E6: ='Data Input'!H19 -> 89465.48458
B7: Office Space per Employee (RSF) | E7: =E8/E6 -> 233.1737217
B8: Current Office Demand (RSF) | E8: ='Data Input'!C9-'Data Input'!C10 -> 20861000
B9: Current Office Supply (RSF) | E9: ='Data Input'!C9 -> 27667000
B10: Current Office Gap (RSF) | E10: =E8-E9 -> -6806000
B11: Current Occupancy Rate | E11: =1-'Data Input'!C10/'Data Input'!C9 -> 0.7540029638
B13: Forecast Market Conditions | E13: ='Data Input'!H3+('Data Input'!C15*30.25) -> 2026-09-25T11:14:21.550
B14: Forecast Office Employment | E14: ='Data Input'!C19 -> 90200.60547
B15: Office Space per Employee (RSF) | E15: =E16/E14 -> 233.1737217
B16: Forecast Office Demand (RSF) | E16: =E14*(E8/E6) -> 21032410.87
B17: Forecast Office Supply (RSF) | E17: ='Data Input'!C9+'Data Input'!C11 -> 27667000
B18: Forecast Office Gap (RSF) | E18: =E16-E17 -> -6634589.127
B19: Forecast Occupancy Rate | E19: =IF(E18<0,1+E18/E17,1) -> 0.7601984629
B21: Forecast Market Stabilization
B22: Targeted Stabilized Occupancy Rate | E22: =1-'Data Input'!C12 -> 0.836
B23: Forecast Annual Absorption (RSF) | E23: =(E16-E8)/('Data Input'!C15/12) -> 85705.43671
B24: Additional Months to Reach Stabilized Occupancy | E24: =IF(E22>E19,(((E22-E19)*E17)/E23)*12,0) -> 293.6384725
B25: Forecast Stabilization Date | E25: =IF(E24>0,E13+(E24*30.25),"Not Applicable") -> 2051-01-20T00:46:13.278
